lending/lending_fUSD_20250121
["ID","MTS","AMOUNT","RATE_DAILY","PERIOD"]
[349832780,1737455446579,-905.56,0.0002021,2]
[349832782,1737455446588,-2404.18,0.0002021,2]
[349832784,1737455446597,-841.45,0.0002021,2]
[349832786,1737455446607,-844.09,0.0002021,2]
[349832788,1737455446616,-711.51,0.0002021,2]
[349832790,1737455446626,-934.55,0.0002021,2]
[349832792,1737455446635,-908.64,0.0002021,2]
[349832794,1737455446646,-500.0,0.00020211,2]
[349832796,1737455446655,-500.0,0.00020211,2]
[349832798,1737455446665,-500.0,0.00020211,2]
[349832800,1737455446674,-268.77259026,0.00020211,2]
[349832802,1737455446686,-500.0,0.00020211,2]
[349832804,1737455446695,-500.0,0.00020211,2]
[349832806,1737455446705,-500.0,0.00020211,2]
[349832808,1737455446714,-500.0,0.00020211,2]
[349832810,1737455446724,-500.0,0.00020211,2]
[349832813,1737455446734,-500.0,0.00020211,2]
[349832814,1737455446743,-500.0,0.00020211,2]
[349832816,1737455446753,-500.0,0.00020212,2]
[349832818,1737455446762,-191.46015416,0.00020212,2]
[349832820,1737455446771,-500.0,0.00020212,2]
[349832822,1737455446781,-500.0,0.00020212,2]
[349832824,1737455446791,-500.0,0.00020212,2]
[349832826,1737455446800,-500.0,0.00020212,2]
[349832829,1737455446811,-500.0,0.00020212,2]
[349832831,1737455446821,-500.0,0.00020212,2]
[349832833,1737455446830,-500.0,0.00020212,2]
[349832835,1737455446839,-500.0,0.00020212,2]
[349832837,1737455446849,-500.0,0.00020212,2]
[349832839,1737455446858,-500.0,0.00020212,2]
[349832841,1737455446867,-500.0,0.00020212,2]
[349832843,1737455446877,-500.0,0.00020212,2]
[349832844,1737455446886,-594.97,0.00020212,2]
[349832846,1737455446897,-453.90967748,0.00020212,2]
[349832849,1737455446907,-500.0,0.00020212,2]
[349832851,1737455446917,-500.0,0.00020212,2]
[349832853,1737455446927,-500.0,0.00020212,2]
[349832855,1737455446937,-500.0,0.00020212,2]
[349832857,1737455446948,-500.0,0.00020212,2]
[349832859,1737455446957,-500.0,0.00020212,2]
[349832861,1737455446967,-500.0,0.00020212,2]
[349832863,1737455446977,-500.0,0.00020212,2]
[349832865,1737455446985,-500.0,0.00020212,2]
[349832867,1737455446995,-500.0,0.00020212,2]
[349832869,1737455447005,-500.0,0.00020212,2]
[349832871,1737455447015,-500.0,0.00020212,2]
[349832873,1737455447024,-500.0,0.00020212,2]
[349832875,1737455447034,-723.84,0.00020212,2]
[349832877,1737455447044,-500.0,0.00020212,2]
[349832879,1737455447053,-1160.98,0.00020212,2]
[349832881,1737455447063,-500.0,0.00020212,2]
[349832883,1737455447073,-500.0,0.00020212,2]
[349832885,1737455447082,-500.0,0.00020212,2]
[349832887,1737455447091,-500.0,0.00020212,2]
[349832889,1737455447100,-724.95,0.00020212,2]
[349832891,1737455447109,-500.0,0.00020212,2]
[349832892,1737455447118,-500.0,0.00020212,2]
[349832894,1737455447127,-1973.65,0.00020212,2]
[349832896,1737455447137,-500.0,0.00020212,2]
[349832899,1737455447148,-500.0,0.00020212,2]
[349832901,1737455447158,-763.12,0.00020212,2]
[349832902,1737455447170,-500.0,0.00020212,2]
[349832904,1737455447180,-500.0,0.00020212,2]
[349832906,1737455447189,-500.0,0.00020212,2]
[349832908,1737455447198,-1105.07,0.00020212,2]
[349832910,1737455447207,-500.0,0.00020212,2]
[349832912,1737455447217,-500.0,0.00020212,2]
[349832914,1737455447226,-807.04,0.00020212,2]
[349832916,1737455447236,-500.0,0.00020212,2]
[349832918,1737455447253,-500.0,0.00020212,2]
[349832920,1737455447262,-500.0,0.00020212,2]
[349832922,1737455447273,-500.0,0.00020212,2]
[349832924,1737455447283,-500.0,0.00020212,2]
[349832926,1737455447294,-179.96857332,0.00020212,2]
[349832928,1737455447305,-997.87,0.00020212,2]
[349832930,1737455447315,-500.0,0.00020212,2]
[349832932,1737455447325,-500.0,0.00020212,2]
[349832934,1737455447336,-517.02002139,0.00020212,2]
[349832936,1737455447346,-500.0,0.00020212,2]
[349832938,1737455447355,-500.0,0.00020212,2]
[349832940,1737455447366,-500.0,0.00020212,2]
[349832942,1737455447375,-500.0,0.00020212,2]
[349832944,1737455447384,-500.0,0.00020212,2]
[349832946,1737455447395,-634.09,0.00020212,2]
[349832948,1737455447404,-500.0,0.00020212,2]
[349832950,1737455447413,-500.0,0.00020212,2]
[349832952,1737455447426,-500.0,0.00020212,2]
[349832954,1737455447436,-500.0,0.00020212,2]
[349832956,1737455447445,-500.0,0.00020212,2]
[349832958,1737455447455,-500.0,0.00020212,2]
[349832960,1737455447465,-500.0,0.00020212,2]
[349832962,1737455447474,-522.9,0.00020212,2]
[349832963,1737455447483,-500.0,0.00020212,2]
[349832965,1737455447492,-500.0,0.00020212,2]
[349832968,1737455447504,-500.0,0.00020212,2]
[349832970,1737455447514,-500.0,0.00020212,2]
[349832972,1737455447523,-500.0,0.00020212,2]
[349832973,1737455447533,-500.0,0.00020212,2]
[349832975,1737455447543,-632.31,0.00020212,2]
[349832978,1737455447553,-508.46381252,0.00020212,2]
[349832980,1737455447562,-537.56,0.00020212,2]
[349832981,1737455447572,-500.0,0.00020212,2]
[349832983,1737455447581,-500.0,0.00020212,2]
[349832985,1737455447592,-924.73,0.00020212,2]
[349832988,1737455447602,-500.0,0.00020212,2]
[349832989,1737455447611,-500.0,0.00020212,2]
[349832991,1737455447621,-638.62,0.00020212,2]
[349832994,1737455447631,-500.0,0.00020212,2]
[349832996,1737455447641,-500.0,0.00020212,2]
[349832997,1737455447655,-1669.61,0.00020212,2]
[349833000,1737455447665,-500.0,0.00020212,2]
[349833002,1737455447674,-500.0,0.00020212,2]
[349833004,1737455447683,-2780.73,0.00020212,2]
[349833006,1737455447693,-500.0,0.00020213,2]
[349833008,1737455447703,-150.0,0.00020235,2]
[349833009,1737455447713,-370.09706076,0.00020255,2]
[349833011,1737455447723,-206.70261586,0.00020264,2]
[349833013,1737455447733,-896.64,0.00020273,2]
[349833014,1737455447742,-802.54,0.00020273,2]
[349833015,1737455447752,-599.33,0.00020273,2]
[349833016,1737455447761,-500.0,0.00020273,2]
[349833017,1737455447771,-1130.76,0.00020273,2]
[349833018,1737455447780,-1764.8,0.00020273,2]
[349833019,1737455447789,-1170.87,0.00020273,2]
[349833020,1737455447799,-1935.46,0.00020273,2]
[349833021,1737455447808,-500.0,0.00020273,2]
[349833022,1737455447817,-1397.15,0.00020273,2]
[349833024,1737455447827,-888.75,0.00020273,2]
[349833026,1737455447837,-500.0,0.00020273,2]
[349833027,1737455447847,-997.88,0.00020273,2]
[349833029,1737455447856,-709.63,0.00020273,2]
[349833032,1737455447866,-902.94,0.00020273,2]
[349833033,1737455447876,-2544.76,0.00020273,2]
[349833036,1737455447886,-850.52,0.00020273,2]
[349833038,1737455447899,-2292.3,0.00020273,2]
[349833040,1737455447909,-500.0,0.00020273,2]
[349833042,1737455447919,-500.0,0.00020273,2]
[349833044,1737455447930,-543.61,0.00020273,2]
[349833046,1737455447939,-500.0,0.00020273,2]
[349833048,1737455447949,-500.0,0.00020273,2]
[349833050,1737455447959,-500.0,0.00020273,2]
[349833052,1737455447970,-1534.04,0.00020273,2]
[349833054,1737455447980,-500.0,0.00020273,2]
[349833056,1737455447990,-500.0,0.00020273,2]
[349833058,1737455447999,-500.0,0.00020273,2]
[349833060,1737455448009,-1237.06,0.00020273,2]
[349833062,1737455448018,-548.65482246,0.00020273,2]
[349833064,1737455448028,-500.0,0.00020273,2]
[349833066,1737455448037,-352.77325604,0.00020273,2]
[349833068,1737455448047,-500.0,0.00020273,2]
[349833070,1737455448058,-981.79,0.00020356,2]
[349833071,1737455448070,-981.79,0.00020356,2]
[349833074,1737455448080,-981.79,0.00020356,2]
[349833075,1737455448090,-981.79,0.00020356,2]
[349833077,1737455448100,-570.92,0.00020356,2]
[349833079,1737455448110,-150.0,0.0002044,2]
[349833081,1737455448119,-1164.72,0.00020443,2]
[349833083,1737455448130,-1799.36,0.00020445,2]
[349833085,1737455448140,-2685.0,0.00020445,2]
[349833087,1737455448151,-1519.25,0.00020445,2]
[349833090,1737455448162,-500.0,0.00020445,2]
[349833091,1737455448172,-1429.36,0.00020445,2]
[349833094,1737455448183,-500.0,0.00020445,2]
[349833095,1737455448194,-500.0,0.00020445,2]
[349833097,1737455448204,-572.22,0.00020445,2]
[349833099,1737455448214,-1208.63,0.00020484,2]
[349833102,1737455448224,-720.29,0.00020484,2]
[349833104,1737455448234,-1135.55,0.00020484,2]
[349833106,1737455448245,-500.0,0.00020484,2]
[349833108,1737455448255,-5596.85,0.00020484,2]
[349833110,1737455448265,-500.0,0.00020484,2]
[349833112,1737455448275,-500.0,0.00020484,2]
[349833114,1737455448285,-516.225877,0.00020484,2]
[349833116,1737455448295,-786.72,0.00020484,2]
[349833118,1737455448304,-771.63,0.00020484,2]
[349833120,1737455448314,-543.76,0.00020484,2]
[349833122,1737455448324,-1177.6,0.00020484,2]
[349833124,1737455448334,-798.31,0.00020484,2]
[349833126,1737455448344,-358.333386,0.00020484,2]
[349833128,1737455448355,-1292.4,0.00020484,2]
[349833130,1737455448365,-941.38,0.00020484,2]
[349833132,1737455448376,-500.0,0.00020484,2]
[349833134,1737455448385,-500.0,0.00020484,2]
[349833136,1737455448398,-2147.55,0.00020484,2]
[349833138,1737455448408,-1700.18,0.00020484,2]
[349833140,1737455448419,-801.99,0.00020484,2]
[349833142,1737455448431,-987.08,0.00020484,2]
[349833144,1737455448442,-1814.27,0.00020484,2]
[349833146,1737455448453,-2064.99,0.00020484,2]
[349833148,1737455448463,-500.0,0.00020484,2]
[349833150,1737455448476,-525.08459881,0.00020484,2]
[349833152,1737455448486,-551.16,0.00020484,2]
[349833154,1737455448496,-905.56,0.00020484,2]
[349833156,1737455448507,-153.133225,0.00020484,2]
[349833158,1737455448517,-2404.18,0.00020484,2]
[349833160,1737455448528,-841.45,0.00020484,2]
[349833162,1737455448538,-844.09,0.00020484,2]
[349833164,1737455448548,-711.51,0.00020484,2]
[349833166,1737455448558,-934.55,0.00020484,2]
[349833168,1737455448568,-908.64,0.00020484,2]
[349833169,1737455448579,-500.0,0.00020485,2]
[349833170,1737455448589,-500.0,0.00020485,2]
[349833171,1737455448602,-500.0,0.00020485,2]
[349833172,1737455448612,-500.0,0.00020485,2]
[349833173,1737455448623,-500.0,0.00020485,2]
[349833174,1737455448634,-500.0,0.00020485,2]
[349833175,1737455448646,-500.0,0.00020485,2]
[349833176,1737455448656,-500.0,0.00020485,2]
[349833177,1737455448667,-314.96078659,0.00020485,2]
[349833178,1737455448677,-185.41951669,0.00020485,2]
[349833179,1737455448688,-500.0,0.00020485,2]
[349833180,1737455448698,-500.0,0.00020485,2]
[349833181,1737455448708,-1407.85,0.00020485,2]
[349833182,1737455448718,-500.0,0.00020485,2]
[349833183,1737455448728,-500.0,0.00020485,2]
[349833184,1737455448738,-622.64,0.00020485,2]
[349833185,1737455448748,-667.61,0.00020485,2]
[349833186,1737455448758,-500.0,0.00020485,2]
[349833187,1737455448768,-1000.0,0.00020485,2]
[349833188,1737455448778,-766.15,0.00020485,2]
[349833189,1737455448788,-500.0,0.00020485,2]
[349833190,1737455448798,-500.0,0.00020485,2]
[349833191,1737455448808,-1281.06,0.00020485,2]
[349833192,1737455448819,-500.0,0.00020485,2]
[349833193,1737455448829,-501.4653993,0.00020485,2]
[349833194,1737455448839,-500.0,0.00020486,2]
[349833195,1737455448850,-500.0,0.00020486,2]
[349833196,1737455448860,-500.0,0.00020486,2]
[349833197,1737455448870,-324.81838924,0.00020486,2]
[349833198,1737455448880,-500.0,0.00020486,2]
[349833199,1737455448891,-165.42,0.00020486,2]
[349833200,1737455448903,-500.0,0.00020486,2]
[349833201,1737455448914,-500.0,0.00020486,2]
[349833202,1737455448924,-500.0,0.00020486,2]
[349833203,1737455448935,-500.0,0.00020486,2]
[349833204,1737455448945,-500.0,0.00020486,2]
[349833205,1737455448956,-500.0,0.00020486,2]
[349833206,1737455448966,-500.0,0.00020486,2]
[349833207,1737455448976,-500.0,0.00020486,2]
[349833208,1737455448987,-500.0,0.00020486,2]
[349833209,1737455448997,-500.0,0.00020486,2]
[349833210,1737455449008,-500.0,0.00020486,2]
[349833211,1737455449018,-500.0,0.00020486,2]
[349833212,1737455449028,-500.0,0.00020486,2]
[349833213,1737455449039,-500.0,0.00020486,2]
[349833214,1737455449049,-500.0,0.00020486,2]
[349833215,1737455449059,-500.0,0.00020486,2]
[349833216,1737455449070,-500.0,0.00020486,2]
[349833217,1737455449081,-500.0,0.00020486,2]
[349833218,1737455449091,-500.0,0.00020486,2]
[349833219,1737455449101,-500.0,0.00020486,2]
[349833220,1737455449112,-723.84,0.00020486,2]
[349833221,1737455449122,-1160.98,0.00020486,2]
[349833222,1737455449132,-575.86,0.00020486,2]
[349833223,1737455449142,-216.83360826,0.00020486,2]
[349833224,1737455449154,-500.0,0.00020486,2]
[349833225,1737455449164,-500.0,0.00020486,2]
[349833226,1737455449174,-724.95,0.00020486,2]
[349833227,1737455449184,-500.0,0.00020486,2]
[349833228,1737455449195,-500.0,0.00020486,2]
[349833229,1737455449205,-1973.65,0.00020486,2]
[349833230,1737455449215,-500.0,0.00020486,2]
[349833231,1737455449225,-500.0,0.00020486,2]
[349833232,1737455449235,-763.12,0.00020486,2]
[349833233,1737455449246,-500.0,0.00020486,2]
[349833234,1737455449258,-500.0,0.00020486,2]
[349833235,1737455449268,-1105.07,0.00020486,2]
[349833236,1737455449278,-500.0,0.00020486,2]
[349833237,1737455449287,-500.0,0.00020486,2]
[349833238,1737455449298,-807.04,0.00020486,2]
[349833239,1737455449308,-500.0,0.00020486,2]
[349833240,1737455449317,-500.0,0.00020486,2]
[349833241,1737455449327,-500.0,0.00020486,2]
[349833242,1737455449337,-500.0,0.00020486,2]
[349833243,1737455449347,-997.87,0.00020486,2]
[349833244,1737455449358,-500.0,0.00020486,2]
[349833245,1737455449368,-500.0,0.00020486,2]
[349833246,1737455449378,-500.0,0.00020486,2]
[349833247,1737455449389,-500.0,0.00020486,2]
[349833248,1737455449403,-500.0,0.00020486,2]
[349833249,1737455449413,-573.87970364,0.00020486,2]
[349833250,1737455449428,-500.0,0.00020486,2]
[349833251,1737455449441,-634.09,0.00020486,2]
[349833252,1737455449451,-500.0,0.00020486,2]
[349833253,1737455449460,-500.0,0.00020486,2]
[349833254,1737455449470,-500.0,0.00020486,2]
[349833255,1737455449480,-500.0,0.00020486,2]
[349833256,1737455449490,-500.0,0.00020486,2]
[349833257,1737455449500,-500.0,0.00020486,2]
[349833258,1737455449510,-522.9,0.00020486,2]
[349833259,1737455449524,-500.0,0.00020486,2]
[349833260,1737455449533,-500.0,0.00020486,2]
[349833261,1737455449543,-500.0,0.00020486,2]
[349833262,1737455449553,-500.0,0.00020486,2]
[349833263,1737455449721,-500.0,0.00020486,2]
[349833264,1737455449731,-500.0,0.00020486,2]
[349833265,1737455449742,-632.31,0.00020486,2]
[349833266,1737455449751,-537.56,0.00020486,2]
[349833267,1737455449761,-500.0,0.00020486,2]
[349833268,1737455449771,-500.0,0.00020486,2]
[349833269,1737455449781,-924.73,0.00020486,2]
[349833270,1737455449791,-500.0,0.00020486,2]
[349833271,1737455449800,-500.0,0.00020486,2]
[349833272,1737455449811,-638.62,0.00020486,2]
[349833273,1737455449821,-500.0,0.00020486,2]
[349833274,1737455449831,-500.0,0.00020486,2]
[349833275,1737455449841,-1669.61,0.00020486,2]
[349833276,1737455449851,-500.0,0.00020486,2]
[349833277,1737455449860,-500.0,0.00020486,2]
[349833278,1737455449870,-2780.73,0.00020486,2]
[349833279,1737455449880,-500.0,0.00020487,2]
[349833280,1737455449890,-2211.18,0.000205,2]
[349833281,1737455449900,-396.09643431,0.0002052,2]
[349833282,1737455449910,-896.64,0.00020547,2]
[349833283,1737455449919,-802.54,0.00020547,2]
[349833284,1737455449929,-599.33,0.00020547,2]
[349833285,1737455449939,-1130.76,0.00020547,2]
[349833286,1737455449948,-1764.8,0.00020547,2]
[349833287,1737455449958,-1170.87,0.00020547,2]
[349833288,1737455449967,-1935.46,0.00020547,2]
[349833289,1737455449976,-500.0,0.00020547,2]
[349833290,1737455449986,-1397.15,0.00020547,2]
[349833291,1737455449995,-888.75,0.00020547,2]
[349833292,1737455450004,-500.0,0.00020547,2]
[349833293,1737455450014,-997.88,0.00020547,2]
[349833294,1737455450023,-709.63,0.00020547,2]
[349833295,1737455450032,-902.94,0.00020547,2]
[349833296,1737455450041,-2544.76,0.00020547,2]
[349833297,1737455450051,-850.52,0.00020547,2]
[349833298,1737455450060,-2292.3,0.00020547,2]
[349833299,1737455450069,-500.0,0.00020547,2]
[349833300,1737455450079,-500.0,0.00020547,2]
[349833301,1737455450088,-543.61,0.00020547,2]
[349833302,1737455450098,-500.0,0.00020547,2]
[349833303,1737455450107,-500.0,0.00020547,2]
[349833304,1737455450117,-500.0,0.00020547,2]
[349833305,1737455450126,-1534.04,0.00020547,2]
[349833306,1737455450136,-500.0,0.00020547,2]
[349833307,1737455450147,-500.0,0.00020547,2]
[349833308,1737455450157,-478.02307022,0.00020547,2]
[349833309,1737455450166,-1237.06,0.00020547,2]
[349833310,1737455450175,-300.0,0.00020547,2]
[349833311,1737455450185,-252.35,0.00020575,2]
[349833312,1737455450194,-981.79,0.00020578,2]
[349833313,1737455450203,-171.72442,0.00020596,2]
[349833314,1737455450213,-300.0,0.000206,2]
[349833315,1737455450222,-150.0,0.00020638,2]
[349833316,1737455450231,-300.0,0.00020641,2]
[349833317,1737455450241,-206.70261586,0.00020673,2]
[349833318,1737455450250,-150.0,0.00020676,2]
[349833319,1737455450260,-150.0,0.00020692,2]
[349833320,1737455450269,-500.0,0.00020719,2]
[349833321,1737455450279,-502.41138682,0.00020719,2]
[349833322,1737455450288,-500.0,0.00020719,2]
[349833323,1737455450298,-500.0,0.00020719,2]
[349833324,1737455450307,-500.0,0.00020719,2]
[349833325,1737455450317,-500.0,0.00020719,2]
[349833326,1737455450327,-504.70968246,0.00020719,2]
[349833327,1737455450336,-500.0,0.00020719,2]
[349833328,1737455450346,-500.0,0.00020719,2]
[349833329,1737455450356,-500.0,0.00020719,2]
[349833330,1737455450365,-500.0,0.00020719,2]
[349833331,1737455450375,-500.0,0.00020719,2]
[349833332,1737455450384,-500.0,0.00020719,2]
[349833333,1737455450393,-500.0,0.00020719,2]
[349833334,1737455450407,-500.0,0.00020719,2]
[349833335,1737455450417,-500.0,0.00020719,2]
[349833336,1737455450431,-500.0,0.00020719,2]
[349833337,1737455450440,-500.0,0.00020719,2]
[349833338,1737455450450,-500.0,0.00020719,2]
[349833339,1737455450459,-503.38814756,0.00020719,2]
[349833340,1737455450469,-500.0,0.00020719,2]
[349833341,1737455450478,-526.19930995,0.00020719,2]
[349833342,1737455450487,-504.14916728,0.00020719,2]
[349833343,1737455450496,-500.0,0.00020719,2]
[349833344,1737455450506,-500.0,0.00020719,2]
[349833345,1737455450516,-500.0,0.00020719,2]
[349833346,1737455450525,-496.66669598,0.00020719,2]
[349833347,1737455450535,-500.0,0.00020719,2]
[349833348,1737455450544,-500.0,0.00020719,2]
[349833349,1737455450553,-500.0,0.00020719,2]
[349833350,1737455450563,-502.95309513,0.00020719,2]
[349833351,1737455450572,-500.0,0.00020719,2]
[349833352,1737455450581,-500.0,0.00020719,2]
[349833353,1737455450591,-503.92212912,0.00020719,2]
[349833354,1737455450601,-500.0,0.00020719,2]
[349833355,1737455450610,-500.0,0.00020719,2]
[349833356,1737455450619,-500.0,0.00020719,2]
[349833357,1737455450628,-500.0,0.00020719,2]
[349833358,1737455450637,-506.99687776,0.00020719,2]
[349833359,1737455450649,-605.36677641,0.00020719,2]
[349833360,1737455450659,-500.0,0.00020719,2]
[349833361,1737455450668,-500.0,0.00020719,2]
[349833362,1737455450678,-500.0,0.00020719,2]
[349833363,1737455450687,-501.14716916,0.00020719,2]
[349833364,1737455450697,-500.0,0.00020719,2]
[349833365,1737455450706,-500.0,0.00020719,2]
[349833366,1737455450715,-500.35844652,0.00020719,2]
[349833367,1737455450724,-500.0,0.00020719,2]
[349833368,1737455450734,-500.0,0.00020719,2]
[349833369,1737455450743,-500.0,0.00020719,2]
[349833370,1737455450752,-500.0,0.00020719,2]
[349833371,1737455450761,-502.15238257,0.00020719,2]
[349833372,1737455450771,-502.51844575,0.00020719,2]
[349833373,1737455450780,-500.0,0.00020719,2]
[349833374,1737455450789,-500.0,0.00020719,2]
[349833375,1737455450798,-500.0,0.00020719,2]
[349833376,1737455450807,-500.0,0.00020719,2]
[349833377,1737455450816,-529.58185256,0.00020719,2]
[349833378,1737455450825,-500.83520585,0.00020719,2]
[349833379,1737455450834,-512.13213624,0.00020719,2]
[349833380,1737455450844,-500.0,0.00020719,2]
[349833381,1737455450853,-500.0,0.00020719,2]
[349833382,1737455450862,-500.0,0.00020719,2]
[349833383,1737455450872,-500.0,0.00020719,2]
[349833384,1737455450881,-500.0,0.00020719,2]
[349833385,1737455450891,-504.63288902,0.00020719,2]
[349833386,1737455450903,-500.0,0.00020719,2]
[349833387,1737455450912,-500.0,0.00020719,2]
[349833388,1737455450921,-505.78891975,0.00020719,2]
[349833389,1737455450930,-158.5500469,0.00020719,2]
[349833390,1737455450939,-500.0,0.00020719,2]
[349833391,1737455450949,-500.0,0.00020719,2]
[349833392,1737455450959,-500.0,0.00020719,2]
[349833393,1737455450967,-500.82654821,0.00020719,2]
[349833394,1737455450977,-500.0,0.00020719,2]
[349833395,1737455450986,-500.0,0.00020719,2]
[349833396,1737455450995,-500.0,0.00020719,2]
[349833397,1737455451005,-500.0,0.00020719,2]
[349833398,1737455451014,-500.0,0.00020719,2]
[349833399,1737455451023,-501.50750047,0.00020719,2]
[349833400,1737455451032,-501.23969893,0.00020719,2]
[349833401,1737455451041,-500.0,0.00020719,2]
[349833402,1737455451050,-500.0,0.00020719,2]
[349833403,1737455451060,-500.0,0.00020719,2]
[349833404,1737455451069,-500.0,0.00020719,2]
[349833405,1737455451078,-500.0,0.00020719,2]
[349833406,1737455451087,-500.0,0.00020719,2]
[349833407,1737455451096,-500.0,0.00020719,2]
[349833408,1737455451105,-501.03108138,0.00020719,2]
[349833409,1737455451114,-500.0,0.00020719,2]
[349833410,1737455451123,-500.0,0.00020719,2]
[349833411,1737455451132,-500.0,0.00020719,2]
[349833412,1737455451141,-502.66424175,0.00020719,2]
[349833413,1737455451155,-500.0,0.00020719,2]
[349833414,1737455451164,-500.26444616,0.00020719,2]
[349833415,1737455451174,-500.0,0.00020719,2]
[349833416,1737455451183,-500.0,0.00020719,2]
[349833417,1737455451192,-519.58590685,0.00020719,2]
[349833418,1737455451201,-500.0,0.00020719,2]
[349833419,1737455451211,-500.0,0.00020719,2]
[349833420,1737455451220,-502.36773505,0.00020719,2]
[349833421,1737455451229,-500.0,0.00020719,2]
[349833422,1737455451238,-508.22363121,0.00020719,2]
[349833423,1737455451248,-500.0,0.00020719,2]
[349833424,1737455451258,-502.49,0.00020719,2]
[349833425,1737455451267,-563.77,0.00020719,2]
[349833426,1737455451276,-500.0,0.00020719,2]
[349833427,1737455451286,-500.0,0.00020719,2]
[349833428,1737455451295,-500.64628022,0.00020719,2]
[349833429,1737455451304,-500.0,0.00020719,2]
[349833430,1737455451314,-500.0,0.00020719,2]
[349833431,1737455451324,-500.0,0.00020719,2]
[349833432,1737455451333,-500.0,0.00020719,2]
[349833433,1737455451343,-502.70688409,0.00020719,2]
[349833434,1737455451352,-500.0,0.00020719,2]
[349833435,1737455451362,-500.0,0.00020719,2]
[349833436,1737455451374,-500.0,0.00020719,2]
[349833437,1737455451387,-546.34,0.00020719,2]
[349833438,1737455451404,-505.71237173,0.00020719,2]
[349833439,1737455451416,-501.32133427,0.00020719,2]
[349833440,1737455451428,-504.36495375,0.00020719,2]
[349833441,1737455451442,-500.0,0.00020719,2]
[349833442,1737455451455,-504.21320452,0.00020719,2]
[349833443,1737455451468,-500.0,0.00020719,2]
[349833444,1737455451481,-256.58608382,0.00020719,2]
[349833445,1737455451494,-500.0,0.00020719,2]
[349833446,1737455451507,-501.92827255,0.00020719,2]
[349833447,1737455451519,-500.0,0.00020719,2]
[349833448,1737455451529,-500.0,0.00020719,2]
[349833449,1737455451542,-500.0,0.00020719,2]
[349833450,1737455451555,-501.34157021,0.00020719,2]
[349833451,1737455451568,-501.32899466,0.00020719,2]
[349833452,1737455451581,-502.66325172,0.00020719,2]
[349833453,1737455451593,-502.77695158,0.00020719,2]
[349833454,1737455451606,-509.50403772,0.00020719,2]
[349833455,1737455451618,-500.0,0.00020719,2]
[349833456,1737455451630,-502.75125527,0.00020719,2]
[349833457,1737455451643,-500.0,0.00020719,2]
[349833458,1737455451658,-503.21581185,0.00020719,2]
[349833459,1737455451671,-364.83690005,0.00020719,2]
[349833460,1737455451683,-503.87915327,0.00020719,2]
[349833461,1737455451695,-849.01,0.00020719,2]
[349833462,1737455451707,-500.0,0.00020719,2]
[349833463,1737455451720,-503.63525526,0.00020719,2]
[349833464,1737455451734,-503.78223036,0.00020719,2]
[349833465,1737455451746,-500.0,0.00020719,2]
[349833466,1737455451759,-504.27509728,0.00020719,2]
[349833467,1737455451770,-500.0,0.00020719,2]
[349833468,1737455451781,-500.0,0.00020719,2]